fUSD/lending_fUSD_20241121
["ID","MTS","AMOUNT","RATE_DAILY","PERIOD"]
[342918943,1732204271629,-500.0,0.00041916,18]
[342918944,1732204271638,-500.0,0.00041916,18]
[342918945,1732204271647,-500.0,0.00041916,18]
[342918946,1732204271657,-500.0,0.00041916,18]
[342918947,1732204271667,-500.0,0.00041916,18]
[342918948,1732204271676,-500.0,0.00041916,18]
[342918949,1732204271690,-365.22782916,0.00041916,18]
[342918950,1732204271701,-500.0,0.00041916,11]
[342918951,1732204271712,-500.0,0.00041916,11]
[342918952,1732204271721,-550.58,0.00041916,11]
[342918953,1732204271731,-500.0,0.00041916,11]
[342918954,1732204271740,-1010.99,0.00041916,11]
[342918955,1732204271749,-766.0,0.00041916,11]
[342918956,1732204271758,-500.0,0.00041916,11]
[342918957,1732204271767,-500.0,0.00041916,11]
[342918958,1732204271777,-819.63,0.00041916,11]
[342918959,1732204271786,-500.0,0.00041916,11]
[342918960,1732204271796,-571.32,0.00041916,11]
[342918961,1732204271805,-500.0,0.00041916,11]
[342918962,1732204271815,-1712.72,0.00041916,11]
[342918963,1732204271824,-500.0,0.00041916,11]
[342918964,1732204271835,-500.0,0.00041916,11]
[342918965,1732204271845,-764.59,0.00041916,11]
[342918966,1732204271854,-955.73,0.00041916,11]
[342918967,1732204271864,-500.0,0.00041917,18]
[342918968,1732204271873,-500.0,0.00041917,18]
[342918969,1732204271882,-500.0,0.00041917,18]
[342918970,1732204271891,-500.0,0.00041917,18]
[342918971,1732204271901,-500.0,0.00041917,18]
[342918972,1732204271911,-500.0,0.00041917,18]
[342918973,1732204271920,-500.0,0.00041917,18]
[342918974,1732204271932,-500.0,0.00041917,18]
[342918975,1732204271944,-500.0,0.00041917,18]
[342918976,1732204271953,-500.0,0.00041917,18]
[342918977,1732204271962,-500.0,0.00041917,18]
[342918978,1732204271972,-500.0,0.00041917,18]
[342918979,1732204271981,-500.0,0.00041917,18]
[342918980,1732204271990,-613.53853902,0.00041917,18]
[342918981,1732204271999,-697.02,0.00041917,18]
[342918982,1732204272008,-550.78,0.00041917,18]
[342918983,1732204272018,-546.56,0.00041917,18]
[342918984,1732204272027,-500.0,0.00041917,18]
[342918985,1732204272036,-500.0,0.00041917,18]
[342918986,1732204272046,-500.0,0.00041917,18]
[342918987,1732204272055,-500.0,0.00041917,18]
[342918988,1732204272064,-829.01,0.00041917,18]
[342918989,1732204272073,-500.0,0.00041917,18]
[342918990,1732204272083,-500.0,0.00041917,18]
[342918991,1732204272092,-500.0,0.00041917,18]
[342918992,1732204272102,-500.0,0.00041917,18]
[342918993,1732204272113,-500.0,0.00041917,18]
[342918994,1732204272124,-500.0,0.00041917,18]
[342918995,1732204272134,-500.0,0.00041917,18]
[342918996,1732204272143,-500.0,0.00041917,18]
[342918997,1732204272152,-500.0,0.00041917,18]
[342918998,1732204272162,-500.0,0.00041917,18]
[342918999,1732204272171,-500.0,0.00041917,18]
[342919000,1732204272185,-1023.91,0.00041917,18]
[342919001,1732204272196,-519.98,0.00041917,18]
[342919002,1732204272206,-500.0,0.00041917,18]
[342919003,1732204272215,-500.0,0.00041917,18]
[342919004,1732204272224,-567.36,0.00041917,11]
[342919005,1732204272233,-500.0,0.00041917,11]
[342919006,1732204272242,-500.0,0.00041917,11]
[342919007,1732204272252,-500.0,0.00041917,11]
[342919008,1732204272261,-500.0,0.00041917,11]
[342919009,1732204272270,-500.0,0.00041917,11]
[342919010,1732204272280,-411.38621554,0.00041917,11]
[342919011,1732204272289,-517.06,0.00041917,11]
[342919012,1732204272299,-500.0,0.00041917,11]
[342919013,1732204272308,-540.07,0.00041917,11]
[342919014,1732204272318,-500.0,0.00041917,11]
[342919015,1732204272328,-635.4,0.00041917,11]
[342919016,1732204272337,-500.0,0.00041917,11]
[342919017,1732204272346,-185.96905452,0.00041917,11]
[342919018,1732204272355,-500.0,0.00041917,11]
[342919019,1732204272364,-500.0,0.00041917,11]
[342919020,1732204272373,-500.0,0.00041917,11]
[342919021,1732204272383,-500.0,0.00041917,11]
[342919022,1732204272392,-629.21,0.00041917,11]
[342919023,1732204272402,-558.31,0.00041917,11]
[342919024,1732204272411,-500.0,0.00041917,11]
[342919025,1732204272421,-726.04,0.00041917,11]
[342919026,1732204272434,-500.0,0.00041917,11]
[342919027,1732204272443,-500.0,0.00041917,11]
[342919028,1732204272453,-674.21,0.00041917,11]
[342919029,1732204272463,-500.0,0.00041917,11]
[342919030,1732204272473,-810.27,0.00041917,11]
[342919031,1732204272482,-500.0,0.00041917,11]
[342919032,1732204272491,-524.02,0.00041917,11]
[342919033,1732204272501,-857.98,0.00041917,11]
[342919034,1732204272510,-500.0,0.00041917,11]
[342919035,1732204272521,-500.0,0.00041917,11]
[342919036,1732204272530,-500.0,0.00041917,11]
[342919037,1732204272539,-594.22,0.00041917,11]
[342919038,1732204272549,-786.75,0.00041917,11]
[342919039,1732204272559,-629.47,0.00041917,11]
[342919040,1732204272569,-952.08,0.00041917,11]
[342919041,1732204272579,-796.66,0.00041917,11]
[342919042,1732204272589,-610.74,0.00041917,11]
[342919043,1732204272599,-913.27,0.00041917,11]
[342919044,1732204272609,-500.0,0.00041917,11]
[342919045,1732204272618,-500.0,0.00041917,11]
[342919046,1732204272628,-500.0,0.00041917,11]
[342919047,1732204272638,-500.0,0.00041917,11]
[342919048,1732204272647,-431.60387038,0.00041917,11]
[342919049,1732204272657,-549.48,0.00041917,11]
[342919050,1732204272666,-500.0,0.00041917,11]
[342919051,1732204272675,-500.0,0.00041917,11]
[342919052,1732204272689,-696.29,0.00041917,11]
[342919053,1732204272699,-1257.78,0.00041917,11]
[342919054,1732204272710,-329.4403279,0.00041917,11]
[342919055,1732204272719,-683.63,0.00041917,11]
[342919056,1732204272729,-500.0,0.00041917,11]
[342919057,1732204272738,-725.57,0.00041917,11]
[342919058,1732204272747,-500.0,0.00041917,11]
[342919059,1732204272757,-500.0,0.00041917,11]
[342919060,1732204272766,-514.9,0.00041917,11]
[342919061,1732204272775,-500.0,0.00041917,11]
[342919062,1732204272785,-454.87106038,0.00041917,11]
[342919063,1732204272794,-500.0,0.00041917,11]
[342919064,1732204272803,-1188.15,0.00041917,11]
[342919065,1732204272812,-622.83,0.00041917,11]
[342919066,1732204272822,-777.99,0.00041917,11]
[342919067,1732204272839,-500.0,0.00041917,11]
[342919068,1732204272848,-532.48,0.00041917,11]
[342919069,1732204272858,-1299.26,0.00041917,11]
[342919070,1732204272867,-500.0,0.00041917,11]
[342919071,1732204272877,-578.77,0.00041917,11]
[342919072,1732204272886,-650.76,0.00041917,11]
[342919073,1732204272895,-500.0,0.00041917,11]
[342919074,1732204272904,-1089.51,0.00041917,11]
[342919075,1732204272914,-500.0,0.00041917,11]
[342919076,1732204272923,-514.78,0.00041917,11]
[342919077,1732204272936,-500.0,0.00041917,11]
[342919078,1732204272946,-500.0,0.00041917,11]
[342919079,1732204272955,-596.04,0.00041917,11]
[342919080,1732204272965,-1063.94,0.00041917,11]
[342919081,1732204272975,-640.18,0.00041917,11]
[342919082,1732204272988,-500.0,0.00041917,11]
[342919083,1732204272997,-501.52,0.00041917,11]
[342919084,1732204273007,-1592.31,0.00041917,11]
[342919085,1732204273018,-500.0,0.00041917,11]
[342919086,1732204273027,-500.0,0.00041917,11]
[342919087,1732204273037,-500.0,0.00041917,11]
[342919088,1732204273047,-585.43,0.00041917,11]
[342919089,1732204273057,-500.0,0.00041917,11]
[342919090,1732204273069,-500.0,0.00041917,11]
[342919091,1732204273078,-500.0,0.00041917,11]
[342919092,1732204273090,-500.0,0.00041917,11]
[342919093,1732204273099,-788.71,0.00041917,11]
[342919094,1732204273112,-500.0,0.00041917,11]
[342919095,1732204273121,-500.0,0.00041917,11]
[342919096,1732204273131,-500.0,0.00041917,11]
[342919097,1732204273140,-500.0,0.00041917,11]
[342919098,1732204273151,-500.0,0.00041917,11]
[342919099,1732204273161,-500.0,0.00041917,11]
[342919100,1732204273171,-500.0,0.00041917,11]
[342919101,1732204273184,-500.0,0.00041917,11]
[342919102,1732204273196,-500.0,0.00041917,11]
[342919103,1732204273206,-500.0,0.00041917,11]
[342919104,1732204273216,-500.0,0.00041917,11]
[342919105,1732204273226,-502.31,0.00041917,11]
[342919106,1732204273235,-1392.3,0.00041917,11]
[342919107,1732204273245,-490.27260232,0.00041917,11]
[342919108,1732204273255,-500.0,0.00041917,11]
[342919109,1732204273265,-570.76,0.00041917,11]
[342919110,1732204273274,-500.0,0.00041917,11]
[342919111,1732204273285,-1312.58,0.00041917,11]
[342919112,1732204273294,-869.92,0.00041917,11]
[342919113,1732204273304,-9982.76,0.00041917,11]
[342919114,1732204273314,-605.74,0.00041917,11]
[342919115,1732204273324,-2162.36,0.00041917,11]
[342919116,1732204273333,-514.62,0.00041917,11]
[342919117,1732204273343,-903.28,0.00041917,11]
[342919118,1732204273352,-706.27,0.00041917,11]
[342919119,1732204273362,-635.73,0.00041917,11]
[342919120,1732204273371,-500.0,0.00041917,11]
[342919121,1732204273381,-1528.23,0.00041917,11]
[342919122,1732204273390,-500.0,0.00041917,11]
[342919123,1732204273399,-500.0,0.00041917,11]
[342919124,1732204273409,-500.0,0.00041917,11]
[342919125,1732204273419,-500.0,0.00041917,11]
[342919126,1732204273428,-1090.43,0.00041917,11]
[342919127,1732204273441,-500.0,0.00041917,11]
[342919128,1732204273451,-500.0,0.00041917,11]
[342919129,1732204273460,-500.0,0.00041917,11]
[342919130,1732204273470,-500.0,0.00041917,11]
[342919131,1732204273479,-300.0,0.00041917,11]
[342919132,1732204273489,-2907.09,0.00041917,11]
[342919133,1732204273500,-617.69,0.00041917,11]
[342919134,1732204273510,-500.0,0.00041917,11]
[342919135,1732204273520,-847.62,0.00041917,11]
[342919136,1732204273529,-500.0,0.00041917,11]
[342919137,1732204273543,-500.0,0.00041917,7]
[342919138,1732204273553,-1049.63,0.00041917,11]
[342919139,1732204273562,-782.31,0.00041917,11]
[342919140,1732204273572,-1201.62,0.00041917,11]
[342919141,1732204273582,-500.0,0.00041917,11]
[342919142,1732204273591,-500.0,0.00041917,11]
[342919143,1732204273601,-753.49,0.00041917,11]
[342919144,1732204273610,-500.0,0.00041917,11]
[342919145,1732204273620,-500.0,0.00041917,11]
[342919146,1732204273630,-856.81,0.00041917,11]
[342919147,1732204273639,-1928.55,0.00041917,11]
[342919148,1732204273648,-500.0,0.00041917,11]
[342919149,1732204273659,-852.4,0.00041917,11]
[342919150,1732204273669,-2673.56,0.00041917,11]
[342919151,1732204273679,-578.58,0.00041917,11]
[342919152,1732204273692,-500.0,0.00041917,11]
[342919153,1732204273701,-1196.41,0.00041917,11]
[342919154,1732204273711,-500.0,0.00041917,11]
[342919155,1732204273721,-658.66,0.00041917,11]
[342919156,1732204273731,-500.0,0.00041917,11]
[342919157,1732204273740,-1413.85,0.00041917,11]
[342919158,1732204273750,-3542.25,0.00041917,11]
[342919159,1732204273759,-500.0,0.00041917,11]
[342919160,1732204273769,-698.62,0.00041917,11]
[342919161,1732204273778,-500.0,0.00041917,11]
[342919162,1732204273788,-500.0,0.00041917,11]
[342919163,1732204273797,-1342.07,0.00041917,11]
[342919164,1732204273807,-2500.26,0.00041917,11]
[342919165,1732204273816,-1062.88,0.00041917,11]
[342919166,1732204273825,-500.0,0.00041917,11]
[342919167,1732204273835,-726.84,0.00041917,11]
[342919168,1732204273844,-500.0,0.00041917,11]
[342919169,1732204273853,-686.36,0.00041917,11]
[342919170,1732204273862,-996.28,0.00041917,11]
[342919171,1732204273872,-530.63,0.00041917,11]
[342919172,1732204273881,-500.0,0.00041917,11]
[342919173,1732204273890,-623.27,0.00041917,11]
[342919174,1732204273900,-3668.1,0.00041917,11]
[342919175,1732204273909,-903.26,0.00041917,11]
[342919176,1732204273918,-500.0,0.00041917,11]
[342919177,1732204273927,-500.0,0.00041917,11]
[342919178,1732204273942,-1214.4,0.00041917,11]
[342919179,1732204273951,-500.0,0.00041917,11]
[342919180,1732204273960,-500.0,0.00041917,11]
[342919181,1732204273970,-1131.97,0.00041917,11]
[342919182,1732204273979,-1008.95,0.00041917,11]
[342919183,1732204273988,-1747.29,0.00041917,11]
[342919184,1732204273998,-665.4,0.00041917,11]
[342919185,1732204274007,-500.0,0.00041917,11]
[342919186,1732204274017,-500.0,0.00041917,11]
[342919187,1732204274028,-530.21,0.00041917,11]
[342919188,1732204274039,-1798.83,0.00041917,11]
[342919189,1732204274049,-2143.77,0.00041917,11]
[342919190,1732204274059,-1113.58,0.00041917,11]
[342919191,1732204274070,-1822.93336527,0.00041917,2]
[342919192,1732204274088,-1920.76,0.00041917,2]
[342919193,1732204274101,-1909.0934,0.00041917,2]
[342919194,1732204274145,-1537.88290522,0.00041917,2]
[342919195,1732204274158,-211.94032951,0.00041917,2]
[342919196,1732204274169,-527.05967111,0.00041917,11]
[342919197,1732204274521,-500.0,0.00038356,11]
[342919198,1732204274532,-500.0,0.00038356,11]
[342919199,1732204274542,-500.0,0.0003863,11]
[342919200,1732204274553,-500.0,0.0003863,11]
[342919201,1732204274563,-500.0,0.00038904,11]
[342919202,1732204274574,-500.0,0.00038904,11]
[342919203,1732204274584,-586.04,0.00039168,10]
[342919204,1732204274594,-460.88,0.00039178,11]
[342919205,1732204274604,-500.0,0.00039999,11]
[342919206,1732204274614,-500.0,0.00040273,11]
[342919207,1732204274625,-211.45,0.00040547,11]
[342919208,1732204274635,-10838.05032889,0.00041917,11]
[342919209,1732204274646,-631.63,0.00041917,11]
[342919210,1732204274656,-2155.58,0.00041917,11]
[342919211,1732204274666,-536.67735974,0.00041917,11]
[342919212,1732204274677,-978.14,0.00041972,120]
[342919213,1732204274691,-3607.20231137,0.00042,23]
[342919214,1732204274705,-3270.19999996,0.00042,23]
[342919215,1732204274726,-27901.23614898,0.00042,23]
[342919216,1732204274923,-15221.36153969,0.00042,23]
[342919217,1732204274938,-50000.0,0.00042,13]
[342919218,1732204274948,-21874.12521913,0.00042,33]
[342919219,1732204274962,-570.66800682,0.00042,33]
[342919220,1732204274974,-426.24084041,0.00042,33]
[342919221,1732204274987,-718.43674135,0.00042,33]
[342919222,1732204274999,-797.70243866,0.00042,33]
[342919223,1732204275012,-2405.0276796,0.00042,33]
[342919224,1732204275024,-14453.9001,0.00042,33]
[342919225,1732204275040,-1010.71678396,0.00042,33]
[342919226,1732204275053,-7743.18219007,0.00042,33]
[342919227,1732204275063,-1256.0,0.00042042,2]
[342919228,1732204275073,-1994.0,0.00042042,2]
[342919229,1732204275083,-629.0,0.00042042,2]
[342919230,1732204275094,-1260.0,0.00042042,2]
[342919231,1732204275105,-3748.0,0.00042042,2]
[342919232,1732204275119,-815.0,0.00042042,2]
[342919233,1732204275129,-391.392,0.00042042,2]
[342919234,1732204275139,-150.0,0.00042042,2]
[342919235,1732204275151,-1161.0,0.00042042,2]
[342919236,1732204275161,-250.0,0.00042042,2]
[342919237,1732204275172,-282.457,0.00042042,2]
[342919238,1732204275184,-245.382,0.00042042,2]
[342919239,1732204275196,-1000.0,0.00042042,2]
[342919240,1732204275206,-757.53,0.0004209,11]
[342919241,1732204275217,-834.77,0.0004209,11]
[342919242,1732204275227,-3232.87,0.0004209,11]
[342919243,1732204275239,-1538.07,0.0004209,11]
[342919244,1732204275249,-705.86,0.0004209,11]
[342919245,1732204275259,-500.0,0.0004209,11]
[342919246,1732204275270,-1284.92,0.0004209,11]
[342919247,1732204275281,-500.0,0.0004209,11]
[342919248,1732204275291,-950.09,0.0004209,11]
[342919249,1732204275302,-1031.75,0.0004209,11]
[342919250,1732204275312,-9406.42607922,0.00042091,2]
[342919251,1732204275323,-18414.67077018,0.000421,18]
[342919252,1732204275332,-1000.0,0.0004219,2]
[342919253,1732204275342,-500.0,0.0004219,18]
[342919254,1732204275352,-500.0,0.0004219,18]
[342919255,1732204275362,-500.0,0.0004219,18]
[342919256,1732204275372,-675.16,0.0004219,18]
[342919257,1732204275383,-500.0,0.0004219,18]
[342919258,1732204275393,-500.0,0.0004219,18]
[342919259,1732204275403,-500.0,0.0004219,18]
[342919260,1732204275414,-500.0,0.0004219,18]
[342919261,1732204275424,-500.0,0.0004219,18]
[342919262,1732204275437,-500.0,0.0004219,18]
[342919263,1732204275448,-500.0,0.0004219,11]
[342919264,1732204275458,-500.0,0.0004219,11]
[342919265,1732204275469,-550.58,0.0004219,11]
[342919266,1732204275479,-500.0,0.0004219,11]
[342919267,1732204275491,-1010.99,0.0004219,11]
[342919268,1732204275501,-766.0,0.0004219,11]
[342919269,1732204275511,-500.0,0.0004219,11]
[342919270,1732204275522,-500.0,0.0004219,11]
[342919271,1732204275532,-819.63,0.0004219,11]
[342919272,1732204275543,-500.0,0.0004219,11]
[342919273,1732204275555,-571.32,0.0004219,11]
[342919274,1732204275797,-500.0,0.0004219,11]
[342919275,1732204275808,-1712.72,0.0004219,11]
[342919276,1732204275818,-500.0,0.0004219,11]
[342919277,1732204275828,-500.0,0.0004219,11]
[342919278,1732204275838,-764.59,0.0004219,11]
[342919279,1732204275848,-955.73,0.0004219,11]
[342919280,1732204275857,-500.0,0.00042191,18]
[342919281,1732204275866,-500.0,0.00042191,18]
[342919282,1732204275876,-500.0,0.00042191,18]
[342919283,1732204275885,-500.0,0.00042191,18]
[342919284,1732204275895,-500.0,0.00042191,18]
[342919285,1732204275904,-500.0,0.00042191,18]
[342919286,1732204275915,-436.13613106,0.00042191,18]
[342919287,1732204275924,-500.0,0.00042191,18]
[342919288,1732204275936,-500.0,0.00042191,18]
[342919289,1732204275946,-500.0,0.00042191,18]
[342919290,1732204275956,-500.0,0.00042191,18]
[342919291,1732204275966,-575.13804074,0.00042191,18]
[342919292,1732204275976,-697.02,0.00042191,18]
[342919293,1732204275986,-550.78,0.00042191,18]
[342919294,1732204275995,-546.56,0.00042191,18]
[342919295,1732204276005,-500.0,0.00042191,18]
[342919296,1732204276015,-500.0,0.00042191,18]
[342919297,1732204276024,-500.0,0.00042191,18]
[342919298,1732204276034,-500.0,0.00042191,18]
[342919299,1732204276043,-829.01,0.00042191,18]
[342919300,1732204276053,-500.0,0.00042191,18]
[342919301,1732204276062,-500.0,0.00042191,18]
[342919302,1732204276072,-500.0,0.00042191,18]
[342919303,1732204276081,-500.0,0.00042191,18]
[342919304,1732204276089,-500.0,0.00042191,18]
[342919305,1732204276098,-500.0,0.00042191,18]
[342919306,1732204276108,-500.0,0.00042191,18]
[342919307,1732204276120,-500.0,0.00042191,18]
[342919308,1732204276129,-500.0,0.00042191,18]
[342919309,1732204276138,-500.0,0.00042191,18]
[342919310,1732204276148,-1023.91,0.00042191,18]
[342919311,1732204276159,-519.98,0.00042191,18]
[342919312,1732204276169,-500.0,0.00042191,18]
[342919313,1732204276179,-500.0,0.00042191,18]
[342919314,1732204276194,-567.36,0.00042191,11]
[342919315,1732204276204,-500.0,0.00042191,11]
[342919316,1732204276213,-515.45046982,0.00042191,11]
[342919317,1732204276223,-500.0,0.00042191,11]
[342919318,1732204276233,-500.0,0.00042191,11]
[342919319,1732204276242,-500.0,0.00042191,11]
[342919320,1732204276252,-517.06,0.00042191,11]
[342919321,1732204276261,-500.0,0.00042191,11]
[342919322,1732204276271,-540.07,0.00042191,11]
[342919323,1732204276281,-210.35581035,0.00042191,11]
[342919324,1732204276290,-635.4,0.00042191,11]
[342919325,1732204276300,-500.0,0.00042191,11]
[342919326,1732204276311,-500.0,0.00042191,11]
[342919327,1732204276320,-500.0,0.00042191,11]
[342919328,1732204276330,-500.0,0.00042191,11]
[342919329,1732204276339,-500.0,0.00042191,11]
[342919330,1732204276349,-629.21,0.00042191,11]
[342919331,1732204276358,-558.31,0.00042191,11]
[342919332,1732204276368,-500.0,0.00042191,11]
[342919333,1732204276377,-726.04,0.00042191,11]
[342919334,1732204276387,-500.0,0.00042191,11]
[342919335,1732204276396,-500.0,0.00042191,11]
[342919336,1732204276406,-674.21,0.00042191,11]
[342919337,1732204276415,-500.0,0.00042191,11]
[342919338,1732204276425,-810.27,0.00042191,11]
[342919339,1732204276437,-500.0,0.00042191,11]
[342919340,1732204276447,-524.02,0.00042191,11]
[342919341,1732204276457,-857.98,0.00042191,11]
[342919342,1732204276467,-500.0,0.00042191,11]
[342919343,1732204276477,-500.0,0.00042191,11]
[342919344,1732204276487,-462.71944273,0.00042191,11]
[342919345,1732204276496,-594.22,0.00042191,11]
[342919346,1732204276506,-786.75,0.00042191,11]
[342919347,1732204276516,-629.47,0.00042191,11]
[342919348,1732204276526,-952.08,0.00042191,11]
[342919349,1732204276535,-796.66,0.00042191,11]
[342919350,1732204276546,-610.74,0.00042191,11]
[342919351,1732204276556,-913.27,0.00042191,11]
[342919352,1732204276565,-500.0,0.00042191,11]
[342919353,1732204276575,-500.0,0.00042191,11]
[342919354,1732204276584,-500.0,0.00042191,11]
[342919355,1732204276595,-500.0,0.00042191,11]
[342919356,1732204276605,-549.48,0.00042191,11]
[342919357,1732204276615,-500.0,0.00042191,11]
[342919358,1732204276624,-500.0,0.00042191,11]
[342919359,1732204276634,-696.29,0.00042191,11]
[342919360,1732204276643,-1257.78,0.00042191,11]
[342919361,1732204276653,-683.63,0.00042191,11]
[342919362,1732204276663,-500.0,0.00042191,11]
[342919363,1732204276673,-725.57,0.00042191,11]
[342919364,1732204276685,-500.0,0.00042191,11]
[342919365,1732204276695,-500.0,0.00042191,11]
[342919366,1732204276704,-514.9,0.00042191,11]
[342919367,1732204276714,-500.0,0.00042191,11]
[342919368,1732204276724,-500.0,0.00042191,11]
[342919369,1732204276734,-1188.15,0.00042191,11]
[342919370,1732204276743,-622.83,0.00042191,11]
[342919371,1732204276753,-777.99,0.00042191,11]
[342919372,1732204276763,-500.0,0.00042191,11]
[342919373,1732204276773,-532.48,0.00042191,11]
[342919374,1732204276783,-1299.26,0.00042191,11]
[342919375,1732204276793,-500.0,0.00042191,11]
[342919376,1732204276803,-578.77,0.00042191,11]
[342919377,1732204276812,-650.76,0.00042191,11]
[342919378,1732204276822,-500.0,0.00042191,11]
[342919379,1732204276831,-277.66131777,0.00042191,11]
[342919380,1732204278485,153.8796,0.0002,2]
[342919382,1732204437534,252.18586773,9.983e-05,2]
[342919383,1732204439482,-3285.0,0.00015,2]
[342919384,1732204439505,-300.0,0.00019999,2]
[342919385,1732204439527,-11276.0259835,0.0002,2]
[342919386,1732204442030,300.0,0.00019999,2]
[342919387,1732204442063,3119.087431,0.00019899,2]
[342919388,1732204451528,150.0,9.6e-05,2]
[342919389,1732204451551,130.44673015,9.6e-05,2]
[342919390,1732204618650,156.68,0.00015342,2]
[342919391,1732205132108,-271.95625,0.00022665,2]
[342919392,1732205132135,-166.69081178,0.00022718,2]
[342919393,1732205132158,-160.3215,0.00022817,2]
[342919394,1732205132180,-150.0,0.00024909,2]
[342919395,1732205132203,-500.0,0.00024932,2]
[342919396,1732205132224,-184.54,0.00026986,120]
[342919397,1732205132245,-537.75136741,0.00028778,2]
[342919402,1732205205306,-461.4432005,0.00028778,2]
[342919403,1732205205329,-156.68,0.00028858,2]
[342919404,1732205205354,-166.04,0.00028878,2]
[342919405,1732205205381,-173.08583133,0.00028879,2]
[342919406,1732205237093,-300.0,0.00028879,2]
[342919407,1732205237114,-200.0,0.00028879,30]
[342919408,1732205237136,-3296.70726796,0.0002888,2]
[342919409,1732205238102,-310.02517783,0.0002888,2]
[342919410,1732205345082,-151.78,0.00015342,2]
[342919411,1732205345103,-153.0,0.00026663,2]
[342919412,1732205345125,-153.0,0.00026663,2]
[342919413,1732205350101,-151.78,0.00027507,2]
[342919414,1732205350124,-200.0,0.00028879,30]
[342919415,1732205350146,-9678.6503362,0.0002888,2]
[342919416,1732205362146,-2874.71919158,0.0002888,2]
[342919417,1732205362166,-161.42,0.00028981,2]
[342919440,1732205432369,-151.0,0.0003,120]
[342919441,1732205432380,-250.0,0.00031,2]
[342919442,1732205432389,-561.81,0.00031061,2]
[342919443,1732205432420,-104.31971194,0.00031061,2]
[342919444,1732205432430,-4144.38684285,0.00031161,10]
[342919445,1732205432487,-657.1478191,0.00031161,10]
[342919446,1732205432524,-726.91533805,0.00031161,10]
[342919447,1732205432534,-1624.94,0.00031161,90]
[342919448,1732205432543,-280.0,0.00031655,30]
[342919449,1732205432552,-2747.96,0.00031656,2]
[342919450,1732205432561,-150.0,0.00031739,2]
[342919451,1732205432570,-842.0,0.00032008,2]
[342919452,1732205432579,-2347.04,0.00032009,2]
[342919453,1732205432589,-6063.37,0.00032009,2]
[342919454,1732205432598,-299.99,0.00032009,12]
[342919455,1732205432614,-271.95625,0.00032353,2]
[342919456,1732205432624,-300.0,0.00033,2]
[342919457,1732205432633,-813.02,0.00033118,2]
[342919458,1732205432643,-5012.82622771,0.00033844,30]
[342919459,1732205432665,-4205.64400146,0.00033844,30]
[342919460,1732205432679,-568.52454265,0.00033844,30]
[342919461,1732205432690,-956.03336481,0.00033844,30]
[342919488,1732205438352,-666.12971194,0.00032965,2]
[342919489,1732205438362,-551.34162263,0.00033844,30]
[342919490,1732205438374,-715.78359328,0.00033844,30]
[342919491,1732205438514,-630.55186465,0.00033844,30]
[342919492,1732205438568,-618.92047143,0.00033844,30]
[342919493,1732205438580,-5454.35793026,0.00033844,30]
[342919494,1732205438592,-1405.44638112,0.00033844,30]
[342919495,1732205438602,-153.0,0.00034,120]